Cogmind - Beta 15 @@@ ROGUE MODE // 2025.08.09 @ 16:07:37 Player: HeartGrenade Result: Destroyed by DH-O93(R) with Subdweller Beam Cannon Performance ------------- Evolutions (0) 0 Regions Visited (2) 400 Robots Destroyed (17) 85 Value Destroyed (577) 577 Prototype IDs (0) 0 Alien Tech Used (0) 0 Bonus (0) 0 TOTAL SCORE: 1062 Bonus ------- None Cogmind --------- Core Integrity 0/250 Matter 270/300 Energy 43/100 System Corruption 0% Temperature Cool (32) Movement Walking (120) Location -10/Subcaves Parts ------- > --- POWER (1) -------- (None) > --- PROPULSION (2) --- Aluminum Leg > --- UTILITY (2) ------ (None) > --- WEAPON (2) ------- Subdweller Beam Cannon Battle Rifle > --- INVENTORY (5) ---- Ion Engine Light Treads Light Treads Aluminum Leg Large Storage Unit Peak State ------------ > --- POWER ------------ Subdweller Power Source > --- PROPULSION ------- Aluminum Leg Aluminum Leg > --- UTILITY ---------- Scrap Shield > --- WEAPON ----------- Light Assault Rifle Flail > --- INVENTORY -------- Ion Engine Light Treads Light Treads Aluminum Leg Large Storage Unit [Rating: 11] Favorites ----------- Power Subdweller Power Source Engine Subdweller Power Source Propulsion Aluminum Leg Leg Aluminum Leg Utility Core Shielding Storage Large Storage Unit Protection Core Shielding Weapon Light Assault Rifle Energy Gun Small Laser Energy Cannon Subdweller Beam Cannon Ballistic Gun Light Assault Rifle Impact Weapon Flail Build | -11 -10 -10 ------- Run | Yrd Mat Sub Slots Evolved . | . . . Power . | . . . Propulsion . | . . . Utility . | . . . Weapon . | . . . Parts Attached 17 | 4 8 5 Power 1 | . . 1 Engine 1 | . . 1 Core . | . . . Reactor . | . . . Propulsion 4 | 2 2 . Treads . | . . . Leg 4 | 2 2 . Wheel . | . . . Hover . | . . . Flight . | . . . Utility 5 | . 3 2 Device . | . . . Storage 1 | . 1 . Processor . | . . . Hackware . | . . . Protection 4 | . 2 2 Artifact . | . . . Weapon 7 | 2 3 2 Energy Gun 1 | 1 . . Energy Cannon 1 | . . 1 Ballistic Gun 3 | 1 1 1 Ballistic Cannon . | . . . Launcher . | . . . Special Weapon . | . . . Impact Weapon 2 | . 2 . Slashing Weapon . | . . . Piercing Weapon . | . . . Special Melee Weapon . | . . . Unidentified Prototypes . | . . . Parts Lost 7 | . 2 5 Power 1 | . . 1 Propulsion 1 | . . 1 Utility 3 | . 1 2 Weapon 2 | . 1 1 Highest Loss Streak 5 | . 1 5 To Critical Strikes . | . . . Average Backups 5 | 1 5 5 Power . | . . 1 Propulsion 2 | . 2 2 Utility 1 | . 1 1 Weapon . | . . . Tool/Special . | . . . Unused Backups 9 | . 1 8 Power 1 | . . 1 Propulsion 2 | . . 2 Utility 5 | . . 5 Weapon 1 | . 1 . Tool/Special . | . . . Average Slot Usage (%) 71 | . 70 74 Engine 1 | . . 5 Leg 27 | . 28 26 Storage 3 | . 3 2 Protection 11 | . 10 12 Energy Cannon 1 | . . 7 Ballistic Gun 21 | . 24 12 Impact Weapon 3 | . 2 7 Peak Build Rating 11 | 4 8 11 Average Rating 6 | 2 5 9 On Entrance 4 | . 4 8 Naked Turns . | . . . Heaviest Build 32 | 2 24 32 Greatest Support 20 | 3 20 20 Greatest Overweight (x) 2 | . 1 2 Average Overweight (x) . | . . . Largest Inventory Capacity 15 | 5 15 15 Average Capacity 7 | 5 7 6 Most Carried 10 | 3 10 9 Average Carried 5 | 1 5 5 Final Capacity 15 | 5 15 5 Final Carried 9 | 3 9 5 Class Distribution -------------------- 88% | Mutant 11% | Subdweller-Mutant Dominant Class ---------------- Mutant | -10/Materials Subdweller-Mutant | -10/Subcaves Resources | -11 -10 -10 ----------- Run | Yrd Mat Sub Matter Collected 431 | 240 164 27 Remotely . | . . . Salvage Created 719 | . 543 176 Parts 36 | . 27 9 Haulers Intercepted 2 | . 2 . Recyclers Shooed . | . . . Parts Field Recycled . | . . . Retrieved Matter . | . . . Parts Self-Destructed . | . . . Prevented . | . . . Kills | -11 -10 -10 ------- Run | Yrd Mat Sub Combat Hostiles Destroyed 15 | . 11 4 Guns 8 | . 8 . Cannons 4 | . . 4 Classes Destroyed 3 | . 2 1 Hauler 2 | . 2 . Grunt 11 | . 11 . Subdweller 4 | . . 4 Best Kill Streak 3 | . 3 3 Combat Bots Only 3 | . 3 3 Max Kills in Single Turn 1 | . 1 1 Gunslinging . | . . . Exploded . | . . . Melee . | . . . Uniques/NPCs Destroyed . | . . . Combat | -11 -10 -10 -------- Run | Yrd Mat Sub Hostile Shots Fired 102 | . 50 52 Missed 25 | . 13 12 Hits 77 | . 37 40 Projectile 77 | . 37 40 Critical Strikes 2 | . 1 1 Damage Taken 1396 | . 496 900 Core 268 | . 98 170 Absorbed by Shields . | . . . Redirected to Shielding 4 | . 4 . Regen/Repaired (Parts) 143 | . 143 . Core Remaining (%) 100 | 100 . . Volleys Fired 50 | . 37 13 Largest 2 | . 2 2 Hottest 105 | . 40 105 Shots Fired 98 | . 74 24 Gun 86 | . 74 12 Cannon 12 | . . 12 Launcher . | . . . Special . | . . . Kinetic 86 | . 74 12 Thermal 12 | . . 12 Explosive . | . . . Electromagnetic . | . . . Robot Hit Streak 12 | . 12 8 Robot Miss Streak 3 | . 3 1 Penetration Max . | . . . Secondary Targets 1 | . 1 . Max Gunslinging Chain 1 | . 1 . Shots Hit Robots 83 | . 67 16 Core Hits 28 | . 24 4 Critical Kills . | . . . Critical Parts Destroyed 2 | . 2 . Critical Strikes 2 | . 2 . Smash 2 | . 2 . Melee Attacks 17 | . 17 . Impact 17 | . 17 . Slashing . | . . . Piercing . | . . . Sneak Attacks 2 | . 2 . Combat Hostiles . | . . . Follow-up Attacks . | . . . Damage Inflicted 1264 | . 899 365 Guns 469 | . 408 61 Cannons 304 | . . 304 Explosions . | . . . Melee 491 | . 491 . Ramming . | . . . Kinetic 469 | . 408 61 Thermal 304 | . . 304 Explosive . | . . . Electromagnetic . | . . . Impact 491 | . 491 . Slashing . | . . . Piercing . | . . . Highest Corruption . | . . . Average Corruption . | . . . Corruption Purged . | . . . Corruption Blocked . | . . . Overload Shots . | . . . Overflow Damage 101 | . 101 . Projectiles . | . . . Explosions . | . . . Melee 101 | . 101 . Knockbacks 2 | . 2 . Impact 2 | . 2 . Kinetic . | . . . Secondary . | . . . Self-Inflicted Damage . | . . . Shots . | . . . Rammed . | . . . Targets Rammed . | . . . Kicked . | . . . Crushed . | . . . Highest Temperature 23 | . 12 23 Average Temperature 7 | . 3 12 Received Heat Transfer 420 | . 291 129 Siege Activations . | . . . Martial Activations . | . . . Shielding Activations . | . . . Robots Disrupted . | . . . Combat Hostiles . | . . . Robots Corrupted 4 | . 4 . Combat Hostiles 3 | . 3 . Parts Fried 3 | . 3 . Impact Corruptions 6 | . 6 . Robots Melted . | . . . Combat Hostiles . | . . . Parts Melted . | . . . Heat Transferred 407 | . . 407 Parts Sabotaged . | . . . Parts Stolen . | . . . Parts Stripped . | . . . Power Chain Reactions . | . . . Alert | -11 -10 -10 ------- Run | Yrd Mat Sub Maximum Alert Level . | . . . Low Security (%) 100 | 100 100 . Level 1 . | . . . Level 2 . | . . . Level 3 . | . . . Level 4 . | . . . Level 5 . | . . . High Security . | . . . Max Security . | . . . Peak Influence 153 | . 153 . Initial . | . . . Average 87 | . 90 . Influence Increases 370 | . 370 . Destroy 0b10 Robot/C 220 | . 220 . Destroy 0b10 Robot/NC 10 | . 10 . Destroy Leader 44 | . 44 . Successful Hack 6 | . 6 . Lose Combat Pursuer 90 | . 90 . Influence Decreases 370 | . 278 92 Entered New Map 45 | . . 45 Time Decay 305 | . 258 47 Lost Part 20 | . 20 . Squads Dispatched 1 | . 1 . Investigation . | . . . Extermination . | . . . Reinforcement 1 | . 1 . Assault . | . . . Garrison . | . . . Intercept . | . . . Searches Triggered . | . . . Construction Impeded . | . . . Haulers Reinforced . | . . . Active Scanning Responses . | . . . Cargo Convoy Interrupts . | . . . Stealth | -11 -10 -10 --------- Run | Yrd Mat Sub Distress Signals 4 | . 4 . Communications Jammed . | . . . Distress Signals . | . . . Times Spotted 28 | . 19 9 Peak Tracking Total 6 | . 5 6 Tactical Retreats 3 | . 3 . Traps | -11 -10 -10 ------- Run | Yrd Mat Sub Traps Triggered . | . . . Indirectly . | . . . Trap Hack Attempts . | . . . Triggered . | . . . Disarmed . | . . . Reprogrammed . | . . . Reused . | . . . Traps Extracted . | . . . Installed . | . . . Triggered . | . . . Machines | -11 -10 -10 ---------- Run | Yrd Mat Sub Machines Disabled . | . . . Max in Single Turn . | . . . Machines Repaired . | . . . Machines Dismantled . | . . . Machines Sabotaged . | . . . Overloaded Fab Kills . | . . . Hacking | -11 -10 -10 --------- Run | Yrd Mat Sub Machines Accessed 2 | . 2 . Terminals 1 | . 1 . Fabricators . | . . . Repair Stations 1 | . 1 . Recycling Units . | . . . Scanalyzers . | . . . Garrison Access . | . . . Total Hacks 9 | . 9 . Successful 5 | . 5 . Failed 4 | . 4 . Catastrophic 1 | . 1 . Database Lockouts . | . . . Manual 4 | . 4 . Terminals 4 | . 4 . Fabricators . | . . . Repair Stations 5 | . 5 . Recycling Units . | . . . Scanalyzers . | . . . Garrison Access . | . . . Terminal Hacks 1 | . 1 . Maintenance Status 1 | . 1 . Fabricator Hacks . | . . . Repair Station Hacks 4 | . 4 . Scan Component 2 | . 2 . Repair 2 | . 2 . Recycling Unit Hacks . | . . . Scanalyzer . | . . . Garrison Access Hacks . | . . . Unauthorized Hacks . | . . . Terminals . | . . . Fabricators . | . . . Repair Stations . | . . . Recycling Units . | . . . Scanalyzers . | . . . Garrison Access . | . . . Data Cores Recovered . | . . . Used . | . . . Hacking Detections 2 | . 2 . Full Trace Events . | . . . Feedback Events . | . . . Feedback Blocked . | . . . Robot Schematics Acquired . | . . . Robots Built . | . . . Authchips . | . . . Time . | . . . Total Robot Build Rating . | . . . Part Schematics Acquired . | . . . Parts Built . | . . . Authchips . | . . . Time . | . . . Total Part Build Rating . | . . . Parts Repaired 2 | . 2 . Time 52 | . 52 . Parts Recycled . | . . . Recycled Matter . | . . . Retrieved Matter . | . . . Retrieved Components . | . . . Parts Scanalyzed . | . . . Part Schematics Acquired . | . . . Parts Damaged . | . . . Bothacking | -11 -10 -10 ------------ Run | Yrd Mat Sub Used RIF Installer . | . . . Robots Hacked . | . . . Non-combat . | . . . Combat . | . . . Robot Hacks Applied . | . . . Relay Couplers Released . | . . . Fabnet Peak Effective % . | . . . Robots Rewired . | . . . Allies Hacked . | . . . Hacks Repelled . | . . . Allies | -11 -10 -10 -------- Run | Yrd Mat Sub Total Allies . | . . . Largest Group . | . . . Highest-Rated Group . | . . . Highest-Rated Ally . | . . . Total Orders . | . . . Ally Attacks . | . . . Total Damage . | . . . Kills . | . . . Allies Corrupted . | . . . Allies Melted . | . . . Intel | -11 -10 -10 ------- Run | Yrd Mat Sub Active Infowar (turns) . | . . . Robot Analysis Total . | . . . Derelict Logs Recovered 1 | . . 1 Drone Launches . | . . . Drone Recoveries . | . . . Exploration | -11 -10 -10 ------------- Run | Yrd Mat Sub Turns Passed 849 | 26 617 206 Spaces Moved 523 | 34 411 78 Core 223 | 34 189 . Treads . | . . . Legs 300 | . 222 78 Wheels . | . . . Hover . | . . . Flight . | . . . Fastest Speed 50 | 50 50 120 Average Speed 108 | 50 98 181 Slowest Speed 260 | 50 190 260 Overloaded Moves . | . . . Propulsion Burnouts . | . . . Robots Hopped . | . . . Potential Cave-ins . | . . . Cave-ins Triggered . | . . . Exploration Rate (%) 27 | 4 71 7 Regions Visited 2 Branch Regions 1 Pre-discovered Areas . | . . . Known Exits Taken . | . . . Unknown Exits Taken 2 | 1 1 . Scrap Searched . | . . . Spaces Dug . | . . . Terrain Destroyed . | . . . Melee . | . . . Projectile . | . . . AOE . | . . . Terrain Rammed . | . . . Walls Destroyed . | . . . Machines Disabled . | . . . Actions | -11 -10 -10 --------- Run | Yrd Mat Sub Total 695 | 40 533 122 Wait 56 | . 43 13 Move 521 | 33 410 78 Hop . | . . . Pick Up 16 | 3 11 2 Fast Attach 11 | 4 2 5 Attach 3 | . 3 . Detach 2 | . 1 1 Swap 6 | . 5 1 Drop 13 | . 4 9 Fire 50 | . 37 13 Melee 17 | . 17 . Ram . | . . . Kick . | . . . Crush . | . . . Escape Stasis . | . . . Rewire . | . . . Trap . | . . . Miscellaneous . | . . . Route ------- -11/Scrapyard -10/Materials (discovered 4 exits: [*Mat x2] / [*Min] / [*Sub]) -10/Subcaves History --------- Turn | Location | Event 10 | -11/Scrapyard | Discovered new exit (range 14) 27 | -11/Scrapyard | Entered Materials 301 | -10/Materials | Build established: Mutant 359 | -10/Materials | Discovered new exit (range 16) 467 | -10/Materials | Discovered new exit (range 8) 566 | -10/Materials | Repaired Aluminum Leg 599 | -10/Materials | Repaired Aluminum Leg 627 | -10/Materials | Discovered new exit (range 6) 627 | -10/Materials | Discovered new exit (range 10) 644 | -10/Materials | Entered Subcaves 779 | -10/Subcaves | Ambushed by swarm of Subdwellers 779 | -10/Subcaves | Ambushed by Subdwellers from Twisted Machinery 832 | -10/Subcaves | Core integrity fell below 50% 849 | -10/Subcaves | Core integrity fell below 20% 850 | -10/Subcaves | Destroyed by DH-O93(R) with Subdweller Beam Cannon Last Messages --------------- Machinery. 00801_ WL-LSL(R) destroyed. 00804_ 13-C9Q(R) destroyed. 00811_ HM-MID(R) affixes Scrap Shield Fragment to Scrap Shield. 00812_ HM-MID(R) destroyed. 00814_ Scrap Shield destroyed. 00816_ Sub. Power Source destroyed. 00819_ Lgt. Assault Rifle destroyed. 00824_ Subatomizers dissect the Battle Rifle. 00824_ Aluminum Leg destroyed. 00826_ Acquired 6 matter. 00828_ Acquired Scrap Shield. 00834_ Acquired Battle Rifle. 00838_ Subatomizers dissect the Sub. Power Source. 00839_ U3-NZL(R) destroyed. 00841_ AF-WL1(R) affixes Scrap Shield Fragment to Scrap Shield. 00846_ Scrap Shield destroyed. Map ----- +----------------------------------------------------+ | ?????????????????????????????????????????????????? | | ?????????????????????????????????????????????????? | | ?????????????????????????????????????????????????? | | ?????????????????????????????????????????????????? | | ?????????????????????????????????????????????????? | | ?????????????????????????????????????????????????? | | #######??????????????????????????????????????????? | | # ##?????????????????????????????????????????? | | #?????????????????????????????????????????? | | ##????????????????????????????????????????? | | ####?#???????????????????????????????????? | | ###! # # #???????????????????????????????????? | | ?##!!! #????????????????????????????????????? | | ##! !### #???????????????????????????????????? | | # # # #???????????????????????????????????? | | # ## ####????????????????????????????????? | | ## # ## # #????????????????????????????????? | | # # ## ####?????????????????????????????? | | ## # ## #?????????????????????????????? | | "# ##?# # #??????????????????????????????? | | ##### #???????????????????????????????? | | ## !& * ####????????????????????????????? | | ?## & ### #;####?????????????????????????? | | ??# !##?# / ####??????????????????????? | | # ##?## *####???????????????????? | | #??# =@= #???????????????????? | | ## ####??# !% %! ####????????????????? | | ?# #?????# R!R [%! ###??????????????? | | ?# ?????## ""# R ##?????????????? | | ??# ??????# "## ###O #?????????????? | | #??## ??????# ####### ##?????????????? | | ???? ?????## ##### #??????????????? | | ???? ??????##### !%* ##??????????????? | | ????### ??????????## [## ![%]#???????????????? | | ???????#???????????# ### [=* #??????????????? | | ??????????????????# #?####### ##??????????????? | | ????????????????? #???????# #???????????????? | | ????????????????# #??????? #???????????????? | | ???????????????# #???????#% #???????????????? | | ???????????????## ????????# #???????????????? | | ????????????????# ??????????# #???????????????? | | ????????????????## ???????????# #???????????????? | | ?????????????????##???????????# #???????????????? | | ??????????????????????????????? #???????????????? | | ??????????????????????????????? ???????????????? | | ??????????????????????????????? ???????????????? | | ???????????????????????????????##"???????????????? | | ?????????????????????????????????????????????????? | | ?????????????????????????????????????????????????? | | ?????????????????????????????????????????????????? | +----------------------------------------------------+ Best States ------------- Heat Dissipation 25 Energy Generation 5 Energy Capacity 200 Matter Stores 300 Matter Capacity 300 Sight Range 16 Terrain Scan Density 10 Armor Coverage 800 Core Shielding 20 Evasion (%) 55 Item Schematics ----------------- None Robot Schematics ------------------ None Fabricated ------------ Nothing Repaired ---------- Aluminum Leg | 13% | -10/Materials Aluminum Leg | 27% | -10/Materials Alien Tech Used ----------------- None Achievements -------------- None Challenges ------------ None Game ------ Seed DisruptionSpreadBuckler Manual? 0 Play Time 00:10:13 Cumulative 382.9 hours Start 2025.08.09 @ 15:56:57 End 2025.08.09 @ 16:07:37 Sessions 1 Manual Loads 0 Difficulty Rogue Special Mode None Game No. 171 Rogue 171 Adventurer 0 Explorer 0 Win Type - Total 19 Types 6/2/6/1/2/0/1/1/0/0 Lore% 72 Gallery% 75 Achievement% 73 Wizard Run 0 Options --------- Layout 2 ASCII 0 Keyboard 1 Movement Numpad Keybinds 0 Fullscreen 2 Font 24/Proggy Map View 50x44 Zoom Use 0% Tactical HUD 1 Map Filters NONE Filters NONE Steam 1 RUN: d9a6a61b-0929-43b3-8b59-263af4e7d1c1